bitfinex-derivatives/quotes_SOLF0:USTF0_20240918
["timestamp","ask_amount","ask_price","bid_price","bid_amount"]
[1726624305707,9.37,130.85,130.8,9.37]
[1726624305913,9.37,130.84,130.79,9.37]
[1726624306302,9.37,130.84,130.81,3.8211]
[1726624306907,3.8205,130.84,130.8,3.8215]
[1726624307113,4.434,130.87,130.79,13.11418409]
[1726624307114,9.37,130.83,130.79,9.37]
[1726624307311,4.434,130.87,130.79,9.37]
[1726624307312,9.37,130.85,130.81,9.37]
[1726624307911,9.37,130.85,130.82,3.8208]
[1726624309314,9.37,130.85,130.83,3.8207]
[1726624309612,9.37,130.85,130.81,9.37]
[1726624310110,13.1902,130.85,130.81,13.1911]
[1726624310412,13.1902,130.85,130.82,3.821]
[1726624311411,13.1902,130.85,130.81,13.1912]
[1726624311714,9.37,130.85,130.81,9.37]
[1726624312712,13.1903,130.85,130.82,3.821]
[1726624313315,3.819,130.89,130.84,9.37]
[1726624313515,12.3239,130.9,130.84,9.37]
[1726624314014,9.37,130.88,130.79,3.8540887]
[1726624314214,9.37,130.84,130.78,1.3967]
[1726624314413,9.37,130.84,130.79,13.10893096]
[1726624314619,9.37,130.84,130.81,3.8212]
[1726624314816,9.37,130.84,130.79,13.10893096]
[1726624315710,15.28,130.91,130.83,9.37]
[1726624315915,15.28,130.91,130.86,9.37]
[1726624315916,24.65,130.91,130.86,9.37]
[1726624316117,24.65,130.91,130.79,7.17304462]
[1726624316118,24.65,130.91,130.87,9.37]
[1726624316417,24.65,130.91,130.88,3.8191]
[1726624317524,28.4685,130.91,130.88,3.8191]
[1726624318020,24.65,130.91,130.88,3.8191]
[1726624318217,24.65,130.91,130.89,3.8188]
[1726624318516,15.28,130.91,130.89,3.8188]
[1726624319113,15.28,130.91,130.88,3.8192]
[1726624320018,226.0,131.0,130.78,9.0406]
[1726624320019,226.0,131.06,130.89,9.37]
[1726624320314,12.3269,130.98,130.93,9.37]
[1726624320523,12.3269,130.98,130.93,13.1876]
[1726624320823,16.1435,130.98,130.93,13.1876]
[1726624321021,16.1435,130.98,130.93,9.37]
[1726624322023,16.1435,130.98,130.94,3.8174]
[1726624322327,9.37,130.96,130.92,3.8179]
[1726624323420,9.37,130.96,130.93,3.8178]
[1726624324219,14.7114,130.97,130.93,3.8178]
[1726624325521,1.4799,131.07,130.96,9.37]
[1726624325819,1.4799,131.07,130.98,9.37]
[1726624325820,1.5279,131.03,130.98,9.37]
[1726624326029,1.5279,131.03,130.9,0.2907]
[1726624326030,1.5279,131.03,130.99,9.37]
[1726624326631,9.37,131.05,131.0,9.37]
[1726624326818,1.5165,131.06,131.0,9.37]
[1726624327020,10.8865,131.06,131.03,3.8147]
[1726624327227,10.8865,131.06,131.01,9.37]
[1726624327525,10.8865,131.06,131.03,3.8148]
[1726624327725,9.37,131.04,130.99,9.37]
[1726624327924,1.5165,131.06,130.99,14.65]
[1726624328124,1.5165,131.06,131.03,3.8148]
[1726624329625,1.5165,131.06,131.04,3.8146]
[1726624331925,1.5165,131.06,131.05,3.8143]
[1726624332231,3.0078,131.07,131.05,3.8143]
[1726624332232,1.4799,131.07,131.05,3.8143]
[1726624336634,1.4799,131.07,131.04,3.8145]
[1726624337525,3.8141,131.06,130.99,14.65]
[1726624338228,3.8143,131.05,130.99,14.65]
[1726624338436,1.4799,131.07,130.99,14.65]
[1726624338732,3.8142,131.06,130.99,14.65]
[1726624339933,3.8142,131.06,131.03,3.8149]
[1726624342635,5.2937,131.07,131.04,3.8146]
[1726624344637,5.2937,131.07,131.01,14.65]
[1726624344938,5.2937,131.07,131.03,3.8148]
[1726624345331,3.8141,131.06,131.03,3.8148]
[1726624345931,16.1299,131.07,130.99,14.65]
[1726624346137,16.1299,131.07,130.98,14.65]
[1726624346437,16.1299,131.07,130.98,18.53704367]
[1726624346637,3.8149,131.03,131.0,3.8157]
[1726624347442,3.8148,131.04,131.0,3.8157]
[1726624347940,3.8148,131.04,131.0,13.1957]
[1726624349145,1.4799,131.07,131.03,9.38]
[1726624349439,1.4799,131.07,131.05,9.38]
[1726624349640,1.4799,131.07,130.94,0.2896]
[1726624349838,10.8599,131.07,131.02,9.38]
[1726624350643,3.8142,131.06,131.02,13.1949]
[1726624350941,10.8599,131.07,131.02,9.38]
[1726624351140,9.38,131.06,130.94,0.2896]
[1726624351335,9.38,131.06,131.01,9.38]
[1726624351743,13.1941,131.06,131.02,3.815]
[1726624352743,14.6737,131.07,131.03,3.8149]
[1726624355443,10.8599,131.07,131.03,3.8149]
[1726624355648,10.8599,131.07,131.02,9.38]
[1726624356247,3.8142,131.06,131.03,3.8149]
[1726624356544,9.38,131.05,130.94,0.2896]
[1726624356748,9.38,131.05,131.0,9.38]
[1726624356943,3.8147,131.04,131.0,9.38]
[1726624357337,3.815,131.03,131.0,9.38]
[1726624357547,9.38,131.04,130.99,9.38]
[1726624357746,10.8417,131.03,130.99,9.38]
[1726624358447,9.38,131.0,130.9,3.79995812]
[1726624358747,9.38,131.01,130.97,9.38]
[1726624359254,13.1957,131.01,130.97,9.38]
[1726624359740,13.1959,131.0,130.96,9.38]
[1726624359945,13.1959,131.0,130.87,0.291]
[1726624359946,3.8159,131.0,130.94,14.67]
[1726624360345,3.8159,131.0,130.95,3.817]
[1726624361549,3.8162,130.99,130.95,3.817]
[1726624362453,14.67,131.0,130.94,3.8175]
[1726624363849,3.8166,130.98,130.94,3.8175]
[1726624366045,3.8162,130.99,130.95,3.8172]
[1726624366249,1.3816,131.02,130.95,14.67]
[1726624367060,1.3816,131.02,130.96,3.8168]
[1726624367261,3.816,131.0,130.96,3.8168]
[1726624367855,14.67,130.99,130.87,0.291]
[1726624368158,1.4131,130.98,130.9,14.67]
[1726624368359,3.8168,130.97,130.93,3.8177]
[1726624368763,1.4131,130.98,130.92,14.67]
[1726624369065,5.2296,130.98,130.94,3.8173]
[1726624374957,3.8167,130.97,130.94,3.8173]
[1726624375762,1.4131,130.98,130.92,18.47166903]
[1726624375763,5.2295,130.98,130.95,3.8172]
[1726624378061,5.2295,130.98,130.94,3.8174]
[1726624378969,5.2295,130.98,130.95,3.8172]
[1726624381668,3.8162,130.99,130.96,3.8169]
[1726624382061,3.8162,130.99,130.96,13.2069]
[1726624382267,3.816,131.0,130.96,13.2069]
[1726624382469,9.39,131.0,130.96,13.2069]
[1726624383770,3.8162,130.99,130.96,13.2069]
[1726624384168,1.4524,131.01,130.97,9.39]
[1726624384366,3.816,131.0,130.97,9.39]
[1726624385367,3.816,131.0,130.96,13.2069]
[1726624388272,9.39,131.0,130.94,9.39]
[1726624389866,9.39,131.0,130.95,3.8172]
[1726624389867,3.8166,130.98,130.95,3.8172]
[1726624390067,9.39,130.99,130.94,9.39]
[1726624390668,3.8167,130.97,130.94,9.39]
[1726624390872,3.8167,130.97,130.94,13.2074]
[1726624392373,3.8165,130.98,130.95,3.8172]
[1726624393077,3.8163,130.99,130.96,3.8169]
[1726624396274,3.8163,130.99,130.95,13.2071]
[1726624397277,3.8163,130.99,130.96,3.8169]
[1726624397779,3.8164,130.98,130.95,9.39]
[1726624398078,9.39,130.99,130.94,9.39]
[1726624398679,3.8167,130.97,130.94,13.2073]
[1726624400183,3.8165,130.98,130.95,3.8172]
[1726624401378,3.8163,130.99,130.96,13.2069]
[1726624407785,3.8164,130.98,130.96,9.39]
[1726624411682,3.8164,130.98,130.95,13.2071]
[1726624412095,9.39,130.99,130.95,9.39]
[1726624413888,3.8164,130.98,130.95,13.2072]
[1726624414391,3.8162,130.99,130.96,3.8169]
[1726624415299,3.8164,130.98,130.95,13.2071]
[1726624422213,3.8167,130.97,130.95,9.39]
[1726624423104,3.8167,130.97,130.95,13.2072]
[1726624426211,3.8165,130.98,130.95,13.2072]
[1726624427714,13.2062,130.99,130.96,3.8169]
[1726624428006,9.39,130.99,130.96,3.8169]
[1726624428807,3.8164,130.98,130.96,3.8169]
[1726624429607,3.8163,130.99,130.96,3.8169]
[1726624430115,3.8161,130.99,130.96,13.2069]
[1726624432515,3.8159,131.0,130.97,3.8167]
[1726624432712,9.39,131.0,130.96,9.39]
[1726624433011,3.8161,130.99,130.96,13.2068]
[1726624435515,9.39,131.0,130.93,3.79937749]
[1726624435516,15.26,131.04,130.98,9.39]
[1726624435716,15.26,131.04,131.03,9.39]
[1726624435910,3.8144,131.05,131.03,9.39]
[1726624436116,130.17387216,131.06,131.03,9.39]
[1726624436316,139.56387216,131.06,131.02,13.205]
[1726624436520,139.56387216,131.06,131.02,9.39]
[1726624437316,9.39,131.04,130.95,5.0568349]
[1726624437522,9.39,131.03,130.99,9.39]
[1726624438821,3.8153,131.02,130.99,9.39]
[1726624440822,9.39,131.01,130.97,13.2066]
[1726624441018,9.39,131.01,130.96,9.39]
[1726624441319,3.7250071,131.05,130.95,9.39]
[1726624441320,9.39,131.0,130.95,9.39]
[1726624441730,9.39,130.98,130.93,3.79937749]
[1726624442026,9.39,130.98,130.93,9.39]
[1726624442224,3.8169,130.97,130.93,13.2076]
[1726624442417,3.8169,130.97,130.93,9.39]
[1726624443124,3.8169,130.97,130.93,13.2077]
[1726624443324,3.817,130.96,130.93,13.2077]
[1726624443524,3.817,130.96,130.93,3.8177]
[1726624444026,13.2067,130.97,130.93,3.8177]
[1726624448933,3.817,130.96,130.93,3.8177]
[1726624449834,9.39,130.95,130.9,9.39]
[1726624450037,9.39,130.94,130.89,13.25880126]
[1726624450226,9.39,130.95,130.91,3.8183]
[1726624450734,13.2074,130.95,130.91,3.8183]
[1726624450935,9.39,130.95,130.9,13.2086]
[1726624451132,3.8177,130.94,130.9,13.2086]
[1726624451329,3.8177,130.94,130.9,9.39]
[1726624452336,9.39,130.96,130.91,9.39]
[1726624452932,13.2075,130.95,130.91,3.8183]
[1726624454630,13.2075,130.95,130.92,3.8181]
[1726624456236,9.39,130.95,130.92,3.8181]
[1726624456449,13.2071,130.96,130.91,9.39]
[1726624457243,13.2071,130.96,130.91,13.12865643]
[1726624457844,13.2071,130.96,130.93,3.8178]
[1726624459341,4.4209,130.99,130.94,3.8175]
[1726624459342,13.2067,130.97,130.94,3.8175]
[1726624459547,9.39,130.98,130.94,13.2075]
[1726624459738,13.2066,130.98,130.94,13.2075]
[1726624460245,13.8109,130.99,130.95,9.39]
[1726624460445,17.627,130.99,130.95,9.39]
[1726624460746,17.627,130.99,130.95,13.2072]
[1726624462047,3.8164,130.98,130.95,13.2072]
[1726624463147,3.8164,130.98,130.95,3.8172]
[1726624464048,3.8164,130.98,130.94,13.2075]
[1726624464250,13.2067,130.97,130.93,9.39]
[1726624464452,9.39,130.96,130.92,9.39]
[1726624464650,9.39,130.96,130.92,13.208]
[1726624464851,13.2071,130.96,130.92,13.208]
[1726624466547,13.2071,130.96,130.93,3.8178]
[1726624467252,3.8171,130.96,130.93,3.8178]
[1726624467455,3.8171,130.96,130.93,13.2078]
[1726624474668,13.2068,130.97,130.93,13.2078]
[1726624475459,3.8166,130.98,130.93,9.39]
[1726624475664,13.2066,130.98,130.93,9.39]
[1726624476070,13.2066,130.98,130.95,3.8171]
[1726624476570,13.2066,130.98,130.94,3.8174]
[1726624480769,13.2066,130.98,130.95,3.8172]
[1726624484578,13.2066,130.98,130.94,3.8174]
[1726624485171,9.39,130.97,130.93,3.8178]
[1726624486580,3.817,130.96,130.93,3.8178]
[1726624488071,3.817,130.96,130.93,13.2078]
[1726624490073,13.2068,130.97,130.93,13.2078]
[1726624491283,3.817,130.96,130.93,13.2078]
[1726624495480,3.817,130.96,130.93,3.8178]
[1726624496684,13.207,130.96,130.93,3.8178]
[1726624496885,9.39,130.94,130.87,12.2271391]
[1726624497183,9.39,130.93,130.88,13.20561939]
[1726624497379,9.39,130.93,130.9,3.8184]
[1726624498288,9.39,130.93,130.91,3.8184]
[1726624499081,9.39,130.93,130.88,13.21116912]
[1726624499384,9.39,130.93,130.88,9.39]
[1726624500186,9.39,130.92,130.87,9.39]
[1726624500588,9.39,130.9,130.85,9.39]
[1726624500888,13.2089,130.9,130.86,3.8197]
[1726624501691,9.39,130.9,130.87,3.8195]
[1726624501980,4.4785,130.94,130.87,3.8195]
[1726624501981,9.39,130.89,130.87,3.8195]
[1726624502383,9.39,130.89,130.85,9.39]
[1726624503084,13.2091,130.89,130.85,13.21]
[1726624503486,9.39,130.89,130.86,3.8198]
[1726624503794,9.39,130.89,130.81,0.2897]
[1726624504089,9.39,130.89,130.84,9.39]
[1726624504488,13.2092,130.89,130.85,3.82]
[1726624506697,9.39,130.88,130.85,3.82]
[1726624507497,9.39,130.86,130.8,3.81007215]
[1726624507798,9.39,130.86,130.81,9.39]
[1726624507999,13.2101,130.86,130.82,3.8208]
[1726624509392,13.2101,130.86,130.83,3.8207]
[1726624509796,9.39,130.85,130.81,9.39]
[1726624509995,9.39,130.85,130.82,3.8209]
[1726624510391,12.2565,130.87,130.82,9.39]
[1726624510597,1.4293,130.88,130.85,9.39]
[1726624510995,1.4293,130.88,130.86,3.8197]
[1726624511195,1.4293,130.88,130.85,9.39]
[1726624511403,9.39,130.92,130.87,9.39]
[1726624511601,2.9038,130.94,130.8,3.90403555]
[1726624511602,10.8768,130.93,130.89,13.2088]
[1726624512202,10.8768,130.93,130.9,3.8186]
[1726624515803,14.6946,130.93,130.9,3.8186]
[1726624517110,10.8768,130.93,130.9,3.8186]
[1726624518309,14.6946,130.93,130.9,3.8186]
[1726624519613,10.8768,130.93,130.89,9.39]
[1726624519915,1.4868,130.93,130.91,3.8183]
[1726624520318,15.28,130.95,130.93,3.8178]
[1726624520718,15.28,130.95,130.92,9.39]
[1726624521013,3.817,130.96,130.92,13.2079]
[1726624521518,9.39,130.97,130.92,9.39]
[1726624521713,13.2069,130.97,130.93,3.8177]
[1726624524013,19.6874,131.01,130.94,3.8174]
[1726624524014,13.2064,130.98,130.94,3.8174]
[1726624524209,19.6874,131.01,130.94,9.39]
[1726624524409,13.2063,130.99,130.95,3.817]
[1726624525719,9.39,130.98,130.95,3.817]
[1726624526621,9.39,130.98,130.94,9.39]
[1726624527720,9.39,130.98,130.95,3.8172]
[1726624530529,3.8159,131.0,130.96,13.2069]
[1726624530827,3.8159,131.0,130.96,9.39]
[1726624531029,9.39,130.99,130.95,9.39]
[1726624532122,9.39,130.97,130.92,9.39]
[1726624532525,9.39,130.97,130.93,3.8176]
[1726624532730,13.2067,130.97,130.93,3.8176]
[1726624534927,9.39,130.99,130.95,9.39]
[1726624535234,4.4074,131.01,130.95,9.39]
[1726624535235,9.39,131.0,130.95,9.39]
[1726624535435,13.2063,130.99,130.95,9.39]
[1726624536434,13.2063,130.99,130.95,13.2072]
[1726624536629,13.2063,130.99,130.95,3.8172]
[1726624537032,3.8164,130.98,130.95,3.8172]
[1726624539041,3.8167,130.97,130.94,3.8174]
[1726624539839,13.2065,130.98,130.94,3.8174]
[1726624540537,13.2065,130.98,130.94,13.2074]
[1726624541336,3.8165,130.98,130.95,13.2072]
[1726624542035,13.2062,130.99,130.96,3.8169]
[1726624548147,3.8162,130.99,130.96,3.8169]
[1726624553547,3.8162,130.99,130.95,13.2071]
[1726624555946,3.8162,130.99,130.95,3.8171]
[1726624560849,9.39,130.99,130.88,0.2901]
[1726624561150,9.39,130.97,130.92,9.39]
[1726624562853,3.817,130.96,130.93,3.8176]
[1726624564056,3.817,130.96,130.93,13.2076]
[1726624564254,3.817,130.96,130.88,0.2901]
[1726624564255,3.8168,130.97,130.94,13.2074]
[1726624565659,3.8165,130.98,130.94,13.2074]
[1726624566660,3.8162,130.99,130.96,13.2069]
[1726624568256,9.39,130.97,130.91,9.39]
[1726624568575,4.4074,131.01,130.91,9.39]
[1726624568576,9.39,130.96,130.91,9.39]
[1726624568773,13.207,130.96,130.93,3.8176]
[1726624569155,9.39,130.96,130.93,3.8176]
[1726624570359,9.39,130.96,130.92,3.818]
[1726624571455,3.8173,130.95,130.92,3.818]
[1726624573461,13.2071,130.96,130.92,3.818]
[1726624573661,3.8171,130.96,130.93,9.39]
[1726624574165,3.8167,130.97,130.94,9.39]
[1726624574473,9.39,130.98,130.94,9.39]
[1726624574763,13.2065,130.98,130.94,13.2073]
[1726624574961,3.8165,130.98,130.95,9.39]
[1726624575861,3.8165,130.98,130.95,13.2072]
[1726624581658,3.8165,130.98,130.89,7.16685523]
[1726624581659,4.4074,131.01,130.96,9.39]
[1726624581868,13.7974,131.01,130.96,9.39]
[1726624582371,13.7974,131.01,130.96,13.2069]
[1726624582372,3.816,131.0,130.96,13.2069]
[1726624583259,3.8161,130.99,130.96,13.2069]
[1726624589776,3.8159,131.0,130.96,13.2069]
[1726624591281,13.2059,131.0,130.96,13.2069]
[1726624593170,4.4074,131.01,130.9,7.16624453]
[1726624593377,9.39,130.97,130.92,9.39]
[1726624593674,13.2071,130.96,130.92,3.8179]
[1726624595575,3.8174,130.95,130.91,13.2083]
[1726624595775,3.8174,130.95,130.91,9.39]
[1726624596782,3.8174,130.95,130.92,3.818]
[1726624600685,13.2071,130.96,130.92,3.818]
[1726624602287,13.2071,130.96,130.92,13.208]
[1726624608089,9.39,130.94,130.8,7.6431]
[1726624608284,9.39,130.94,130.89,9.39]
[1726624608691,9.39,130.94,130.91,3.8183]
[1726624609796,17.5901,130.95,130.92,13.2081]
[1726624610390,4.3827,130.95,130.92,13.2081]
[1726624610592,2.9219,130.95,130.93,13.2077]
[1726624614291,3.8168,130.97,130.94,9.39]
[1726624621814,9.39,130.97,130.93,3.8177]
[1726624622011,9.39,130.94,130.89,7.16754973]
[1726624622216,9.39,130.94,130.9,9.39]
[1726624622417,9.39,130.92,130.87,3.8194]
[1726624622617,9.39,130.92,130.8,5.35104328]
[1726624622818,9.39,130.92,130.87,9.39]
[1726624623117,13.2085,130.91,130.87,13.2094]
[1726624623815,2.8723,130.94,130.81,7.17026766]
[1726624623816,13.2088,130.9,130.81,7.17026766]
[1726624624014,9.39,130.9,130.85,9.39]
[1726624624412,13.2089,130.9,130.85,9.39]
[1726624624723,9.39,130.9,130.85,9.39]
[1726624625811,3.8191,130.89,130.85,13.21]
[1726624629022,13.2088,130.9,130.86,13.2098]
[1726624629315,3.8188,130.9,130.86,13.2098]
[1726624630909,13.2088,130.9,130.86,13.2098]
[1726624631921,3.8191,130.89,130.86,3.8198]
[1726624632421,3.8191,130.89,130.85,13.2101]
[1726624634617,13.2091,130.89,130.85,13.2101]
[1726624636024,3.8191,130.89,130.86,3.8199]
[1726624639827,9.39,130.91,130.87,3.8195]
[1726624640429,13.2086,130.91,130.87,3.8195]
[1726624641332,13.2086,130.91,130.88,3.8192]
[1726624641625,9.39,130.93,130.89,9.39]
[1726624642032,13.2079,130.93,130.89,13.2089]
[1726624642426,9.39,130.93,130.9,3.8186]
[1726624644630,12.2623,130.94,130.91,3.8183]
[1726624644825,12.2623,130.94,130.91,13.2083]
[1726624645131,9.39,130.96,130.92,3.818]
[1726624645322,9.39,130.96,130.91,9.39]
[1726624646932,3.8173,130.95,130.91,13.2083]
[1726624647627,3.8173,130.95,130.91,3.8183]
[1726624648932,9.39,130.92,130.87,3.8007556]
[1726624649130,9.39,130.92,130.88,9.39]
[1726624649639,9.39,130.92,130.89,3.819]
[1726624650931,13.2081,130.92,130.89,3.819]
[1726624655326,13.2084,130.91,130.88,13.2092]
[1726624655533,9.39,130.9,130.88,3.8192]
[1726624656232,3.8187,130.9,130.87,13.2095]
[1726624656533,9.39,130.89,130.8,0.2901]
[1726624656740,9.39,130.89,130.85,9.39]
[1726624656938,9.39,130.89,130.84,9.39]
[1726624658037,13.2092,130.89,130.86,3.8199]
[1726624659340,3.8188,130.9,130.87,13.2095]
[1726624661342,9.39,130.91,130.87,13.2095]
[1726624661941,13.2084,130.91,130.87,13.2095]
[1726624662337,13.2084,130.91,130.88,3.8192]
[1726624662840,13.2084,130.91,130.87,3.8195]
[1726624664144,9.39,130.9,130.87,3.8195]
[1726624669751,9.39,130.9,130.88,3.8192]
[1726624670251,9.39,130.9,130.86,9.39]
[1726624670453,16.8039,130.95,130.88,9.39]
[1726624670454,3.8182,130.92,130.88,9.39]
[1726624670655,9.39,130.92,130.88,9.39]
[1726624671151,9.39,130.92,130.89,3.819]
[1726624672853,3.8178,130.94,130.9,3.8187]
[1726624673055,3.8178,130.94,130.9,13.2087]
[1726624673451,30.0113,130.95,130.91,3.8184]
[1726624676153,9.39,130.94,130.91,3.8184]
[1726624677057,9.39,130.93,130.86,3.80590627]
[1726624677359,9.39,130.93,130.88,9.39]
[1726624677951,9.39,130.93,130.9,3.8187]
[1726624678152,9.39,130.91,130.86,9.39]
[1726624678454,9.39,130.9,130.86,9.39]
[1726624679758,9.39,130.9,130.88,3.8192]
[1726624681150,9.39,130.89,130.88,3.8192]
[1726624681755,9.39,130.89,130.87,3.8195]
[1726624686364,9.39,130.91,130.86,9.39]
[1726624687871,13.2084,130.91,130.88,3.8191]
[1726624688063,9.39,130.89,130.84,3.80608721]
[1726624688371,13.209,130.89,130.86,3.8196]
[1726624689165,13.209,130.89,130.87,3.8196]
[1726624690268,9.39,130.89,130.87,3.8196]
[1726624693265,9.39,130.89,130.85,9.39]
[1726624693766,9.39,130.89,130.87,3.8194]
[1726624694668,1.4765,130.9,130.88,13.2093]
[1726624696172,9.39,130.92,130.89,3.819]
[1726624698779,9.39,130.91,130.88,3.8191]
[1726624702576,5.2487,130.92,130.88,3.8191]
[1726624702779,9.39,130.91,130.88,3.8191]
[1726624704276,9.39,130.9,130.88,3.8191]
[1726624705382,9.39,130.91,130.88,3.8191]
[1726624705573,5.2486,130.92,130.88,9.39]
[1726624705574,1.4304,130.92,130.88,9.39]
[1726624705778,1.4304,130.92,130.89,9.39]
[1726624705981,1.4127,130.94,130.92,3.8178]
[1726624706379,1.5239,130.95,130.92,3.8178]
[1726624706681,1.5239,130.95,130.91,13.2083]
[1726624706682,5.3412,130.95,130.91,13.2083]
[1726624707682,1.5239,130.95,130.92,3.8181]
[1726624707882,144.06960332,130.96,130.92,9.39]
[1726624708083,144.06960332,130.96,130.89,3.80141048]
[1726624708084,15.28,130.96,130.94,9.39]
[1726624708381,15.28,130.96,130.95,3.8172]
[1726624708979,2.7895,131.0,130.95,9.39]
[1726624709278,2.7895,131.0,130.97,9.39]
[1726624709279,1.4043,131.0,130.97,9.39]
[1726624709487,1.4043,131.0,130.97,13.2066]
[1726624710079,10.7943,131.0,130.95,13.2072]
[1726624710880,14.6103,131.0,130.95,13.2072]
[1726624711180,14.6103,131.0,130.96,3.8169]
[1726624721686,13.2061,130.99,130.95,3.8171]
[1726624724095,13.2061,130.99,130.95,13.2071]
[1726624724789,13.2061,130.99,130.96,3.817]
[1726624729989,13.2061,130.99,130.95,13.2072]
[1726624730184,13.2061,130.99,130.95,3.8172]
[1726624734295,13.2061,130.99,130.96,3.8169]
[1726624735598,14.6102,131.0,130.96,13.2069]
[1726624740794,5.2202,131.0,130.96,13.2069]
[1726624740994,14.6102,131.0,130.96,13.2069]
[1726624742193,14.6102,131.0,130.97,3.8167]
[1726624742496,5.2202,131.0,130.97,3.8167]
[1726624742798,5.2202,131.0,130.97,13.2067]
[1726624743188,1.4043,131.0,130.97,13.2067]
[1726624743395,1.4043,131.0,130.98,3.8162]
[1726624743596,1.4043,131.0,130.97,9.39]
[1726624744594,1.4043,131.0,130.97,13.2065]
[1726624747100,1.4043,131.0,130.97,3.8165]
[1726624752010,5.2201,131.0,130.97,3.8165]
[1726624752306,1.4043,131.0,130.96,9.39]
[1726624752509,13.2063,130.99,130.94,9.39]
[1726624753107,13.2063,130.99,130.95,13.207]
[1726624755600,10.7943,131.0,130.95,9.39]
[1726624756800,10.7943,131.0,130.96,9.39]
[1726624757709,1.4043,131.0,130.96,9.39]
[1726624757900,5.2201,131.0,130.97,3.8165]
[1726624763003,14.6101,131.0,130.96,3.8168]
[1726624763213,14.6101,131.0,130.96,13.2068]
[1726624764110,9.39,130.99,130.94,9.39]
[1726624764305,9.39,130.99,130.95,9.39]
[1726624764504,13.2062,130.99,130.95,13.2071]
[1726624771310,5.2202,131.0,130.97,9.39]
[1726624772820,5.2202,131.0,130.97,13.2067]
[1726624773821,1.4043,131.0,130.97,9.39]
[1726624774521,1.4043,131.0,130.97,13.2065]
[1726624779726,5.2201,131.0,130.97,13.2065]
[1726624780537,3.8161,130.99,130.96,13.2068]
[1726624780929,13.2061,130.99,130.96,9.39]
[1726624781632,13.2061,130.99,130.96,13.2069]
[1726624781832,13.2061,130.99,130.96,9.39]
[1726624782038,9.39,130.99,130.94,13.2074]
[1726624782235,9.39,130.99,130.94,9.39]
[1726624782744,3.8162,130.99,130.95,13.2072]
[1726624782937,3.8162,130.99,130.96,9.39]
[1726624783942,14.6103,131.0,130.96,13.2068]
[1726624784142,5.2203,131.0,130.96,9.39]
[1726624785940,5.2203,131.0,130.97,3.8166]
[1726624789639,5.2203,131.0,130.97,13.2066]
[1726624790441,1.4043,131.0,130.97,13.2066]
[1726624791644,5.2201,131.0,130.97,13.2066]
[1726624791850,5.2201,131.0,130.97,3.8166]
[1726624792944,5.2201,131.0,130.96,3.8168]
[1726624792945,14.6101,131.0,130.96,3.8168]
[1726624794147,5.2201,131.0,130.96,3.8168]
[1726624795851,5.2201,131.0,130.96,13.2068]
[1726624800752,3.8162,130.99,130.95,3.8171]